bitfinex/quotes_BTCUSD_20240828
["timestamp","ask_amount","ask_price","bid_price","bid_amount"]
[1724845846472,0.00082,60124.0,60123.0,0.13483074]
[1724845846697,0.00082,60124.0,60123.0,0.32961702]
[1724845846925,0.00082,60124.0,60123.0,0.42961702]
[1724845847143,0.00082,60124.0,60123.0,0.44483698]
[1724845848005,0.00082,60124.0,60123.0,0.45883698]
[1724845848241,0.03426383,60133.0,60123.0,0.45883698]
[1724845848242,0.00332981,60154.0,60138.0,0.01424074]
[1724845848479,0.00332981,60154.0,60142.0,0.00930172]
[1724845848691,0.00332981,60163.0,60142.0,0.04056569]
[1724845848909,0.08709,60143.0,60142.0,0.04056569]
[1724845849125,0.11315936,60143.0,60142.0,0.05566917]
[1724845849811,0.08709,60143.0,60138.0,1.26344199]
[1724845850035,0.08709,60143.0,60142.0,0.01258623]
[1724845850254,0.08709,60143.0,60138.0,1.26389998]
[1724845850483,0.08709,60143.0,60142.0,0.02644512]
[1724845850710,0.08709,60143.0,60142.0,0.014]
[1724845850921,0.08709,60143.0,60142.0,0.02643125]
[1724845851391,0.14879,60143.0,60142.0,0.02643125]
[1724845851597,0.15294701,60143.0,60142.0,0.02643125]
[1724845851814,0.15294701,60143.0,60142.0,0.01243125]
[1724845852040,0.15294701,60143.0,60142.0,0.02643125]
[1724845852265,0.14879,60143.0,60142.0,0.014]
[1724845852458,0.14879,60143.0,60142.0,0.02645387]
[1724845852711,0.14879,60143.0,60142.0,0.01245387]
[1724845853177,0.1406,60142.0,60131.0,0.00332153]
[1724845853444,0.0617,60140.0,60132.0,0.023]
[1724845853681,0.1406,60139.0,60133.0,0.00332142]
[1724845853900,0.0617,60138.0,60133.0,0.00332142]
[1724845854369,0.08777137,60138.0,60134.0,0.0124843]
[1724845855864,0.08777137,60138.0,60135.0,0.00332163]
[1724845856328,0.08777137,60138.0,60136.0,0.01250517]
[1724845856752,0.08777137,60138.0,60137.0,0.002]
[1724845857231,0.08777137,60138.0,60137.0,0.01249642]
[1724845857671,0.08777137,60138.0,60136.0,0.014]
[1724845857892,0.08777137,60138.0,60137.0,0.01241191]
[1724845858128,0.08777137,60138.0,60137.0,0.01573324]
[1724845858342,0.08777137,60138.0,60137.0,0.023]
[1724845858564,0.02607137,60138.0,60137.0,1.28817513]
[1724845858778,0.02607137,60138.0,60137.0,1.30217513]
[1724845859011,0.02607137,60138.0,60137.0,1.40217513]
[1724845859684,0.0617,60141.0,60137.0,1.40217513]
[1724845859897,0.0617,60141.0,60138.0,0.123]
[1724845860106,0.0617,60141.0,60139.0,0.00332067]
[1724845860315,0.0617,60141.0,60140.0,0.023]
[1724845860529,0.0617,60141.0,60140.0,0.03541191]
[1724845861029,0.1406,60141.0,60140.0,0.01241191]
[1724845861501,0.00819,60143.0,60140.0,0.014]
[1724845861502,0.1406,60142.0,60140.0,0.014]
[1724845861711,0.1406,60142.0,60140.0,0.02636075]
[1724845861897,0.0617,60141.0,60140.0,0.02636075]
[1724845862073,0.1406,60141.0,60140.0,0.02636075]
[1724845862640,0.1406,60141.0,60140.0,0.04036075]
[1724845863023,0.1406,60141.0,60140.0,0.01236075]
[1724845863398,0.1406,60141.0,60140.0,0.028]
[1724845863612,0.1406,60141.0,60140.0,0.04036075]
[1724845864244,0.141419,60141.0,60140.0,0.04036075]
[1724845864861,0.146419,60141.0,60140.0,0.04036075]
[1724845866089,0.141419,60141.0,60140.0,0.04036075]
[1724845866299,0.16749039,60141.0,60140.0,0.04036075]
[1724845866503,0.16749039,60141.0,60140.0,0.028]
[1724845868209,0.16749039,60141.0,60140.0,0.04058979]
[1724845869943,0.000819,60141.0,60140.0,0.36995056]
[1724845870165,0.000819,60141.0,60140.0,0.48195056]
[1724845870800,0.000819,60141.0,60140.0,0.46795056]
[1724845871061,0.000819,60141.0,60140.0,0.48195056]
[1724845871286,0.000819,60141.0,60140.0,0.46795056]
[1724845871514,0.000819,60141.0,60140.0,1.71739255]
[1724845871948,0.000819,60141.0,60140.0,1.73139255]
[1724845872164,0.00819,60149.0,60147.0,0.0752]
[1724845872423,0.00819,60149.0,60148.0,0.02631898]
[1724845872644,0.00819,60149.0,60148.0,0.13872041]
[1724845873712,0.00819,60149.0,60148.0,0.05272041]
[1724845873924,0.00819,60149.0,60148.0,0.30008118]
[1724845874139,0.00819,60149.0,60148.0,0.40208118]
[1724845874362,0.00819,60149.0,60148.0,0.22830143]
[1724845874573,0.00819,60149.0,60148.0,0.14940143]
[1724845875620,0.00819,60149.0,60148.0,0.16340143]
[1724845876268,0.00819,60149.0,60148.0,0.17766459]
[1724845876470,0.00819,60149.0,60148.0,1.42710658]
[1724845877942,0.00819,60149.0,60148.0,1.57010658]
[1724845878064,0.00819,60149.0,60148.0,1.57210658]
[1724845880287,0.00819,60149.0,60148.0,1.74056735]
[1724845880499,0.00819,60149.0,60148.0,1.75056735]
[1724845881797,0.00819,60149.0,60148.0,1.79979451]
[1724845882224,1e-08,60149.0,60148.0,1.79979451]
[1724845882502,1e-08,60149.0,60148.0,2.11940783]
[1724845883388,1e-08,60149.0,60148.0,2.10540783]
[1724845883590,1e-08,60149.0,60148.0,2.12477783]
[1724845883846,1e-08,60149.0,60148.0,2.15277783]
[1724845884677,1e-08,60149.0,60148.0,2.13877783]
[1724845885141,1e-08,60149.0,60148.0,2.22314088]
[1724845885361,0.09900001,60155.0,60154.0,0.01]
[1724845885566,0.09900001,60155.0,60154.0,1.28244199]
[1724845885782,0.09900001,60155.0,60154.0,1.39449059]
[1724845886227,0.09900001,60155.0,60154.0,1.38949059]
[1724845886453,0.09900001,60155.0,60154.0,1.39449059]
[1724845886669,0.09900001,60155.0,60154.0,1.39649059]
[1724845887301,0.09900001,60155.0,60154.0,1.42449059]
[1724845887557,0.09900001,60155.0,60154.0,1.42249059]
[1724845887778,0.09900001,60155.0,60154.0,1.40849059]
[1724845887983,0.09900001,60155.0,60154.0,1.42249059]
[1724845889262,0.09981901,60155.0,60154.0,1.40849059]
[1724845890579,0.09933919,60155.0,60154.0,1.40849059]
[1724845890796,0.09933919,60155.0,60154.0,1.42249059]
[1724845891036,0.09933919,60155.0,60154.0,1.39449059]
[1724845891243,0.09933919,60155.0,60154.0,1.41049059]
[1724845891468,0.09933919,60155.0,60154.0,1.42449059]
[1724845892130,0.09933919,60155.0,60154.0,1.67185136]
[1724845892342,0.09933919,60155.0,60154.0,1.72103968]
[1724845892560,0.09933919,60155.0,60154.0,1.69303968]
[1724845892970,0.09933919,60155.0,60154.0,1.72103968]
[1724845893182,0.16393919,60155.0,60154.0,1.45767891]
[1724845893398,0.16393919,60155.0,60154.0,1.85252287]
[1724845893399,0.09933919,60155.0,60154.0,1.85252287]
[1724845893605,0.09933919,60155.0,60154.0,2.05871119]
[1724845893824,0.09933919,60155.0,60154.0,2.00861119]
[1724845894052,0.09933919,60155.0,60154.0,1.95942287]
[1724845894265,0.09933919,60155.0,60154.0,1.98061119]
[1724845894477,0.09933919,60155.0,60154.0,1.94542287]
[1724845894686,0.09933919,60155.0,60154.0,1.7100621]
[1724845894897,0.0988191,60155.0,60154.0,1.7100621]
[1724845895575,0.0988191,60155.0,60154.0,1.75925042]
[1724845895782,0.0988191,60155.0,60154.0,1.6980621]
[1724845896008,0.0988191,60155.0,60154.0,1.6840621]
[1724845896240,0.0988191,60155.0,60154.0,1.7120621]
[1724845896527,0.0988191,60155.0,60154.0,1.6980621]
[1724845896736,0.0988191,60155.0,60154.0,1.6960621]
[1724845897423,0.0988191,60155.0,60154.0,1.7100621]
[1724845897651,0.0988191,60155.0,60154.0,1.6960621]
[1724845897900,0.0988191,60155.0,60154.0,1.88052287]
[1724845898138,0.0988191,60155.0,60154.0,1.95942287]
[1724845899320,0.0988191,60155.0,60154.0,1.64217267]
[1724845899543,0.0988191,60155.0,60154.0,1.57895136]
[1724845899805,0.0988191,60155.0,60154.0,1.56495136]
[1724845900011,0.0988191,60155.0,60154.0,1.59295136]
[1724845900444,0.0988191,60155.0,60154.0,1.64217267]
[1724845901302,0.0988191,60155.0,60154.0,1.59295136]
[1724845901597,0.0988191,60155.0,60154.0,1.66678333]
[1724845901817,0.0988191,60155.0,60154.0,1.42449059]
[1724845902040,0.0988191,60155.0,60154.0,1.42339039]
[1724845902273,0.0988191,60155.0,60154.0,1.49722236]
[1724845902499,0.1634191,60155.0,60154.0,1.49722236]
[1724845903451,0.1634191,60155.0,60154.0,1.86605697]
[1724845903669,0.0988191,60155.0,60154.0,1.86605697]
[1724845904108,0.0988191,60155.0,60154.0,1.49722236]
[1724845904328,0.0988191,60155.0,60154.0,1.85605697]
[1724845904558,0.0988191,60155.0,60154.0,1.46269244]
[1724845904785,0.0988191,60155.0,60154.0,1.42339039]
[1724845905272,0.0988191,60155.0,60154.0,1.46269244]
[1724845905756,0.0988191,60155.0,60154.0,1.47270494]
[1724845906182,0.0988591,60155.0,60154.0,1.46270494]
[1724845906397,0.0988591,60155.0,60154.0,1.47270494]
[1724845906632,0.0988591,60155.0,60154.0,1.45870494]
[1724845906868,0.0988591,60155.0,60154.0,1.44870494]
[1724845907082,0.0988591,60155.0,60154.0,1.46270494]
[1724845907304,0.0988591,60155.0,60154.0,1.44870494]
[1724845907524,0.0988591,60155.0,60154.0,1.84221761]
[1724845907737,0.0988591,60155.0,60154.0,1.86621761]
[1724845907931,0.0988591,60155.0,60154.0,1.77824579]
[1724845908198,0.0988591,60155.0,60154.0,1.98543217]
[1724845908429,0.0988591,60155.0,60154.0,1.97143217]
[1724845908682,0.0988591,60155.0,60154.0,1.96943217]
[1724845908901,0.0988591,60155.0,60154.0,1.98343217]
[1724845909121,0.0988591,60155.0,60154.0,1.90153217]
[1724845909615,0.0988591,60155.0,60154.0,1.87696174]
[1724845909834,0.0988591,60155.0,60154.0,1.76424579]
[1724845910075,0.0988591,60155.0,60154.0,1.87753217]
[1724845910302,0.0988591,60155.0,60154.0,1.91563299]
[1724845910579,0.0988591,60155.0,60154.0,1.7822329]
[1724845910808,0.0988591,60155.0,60154.0,1.91562516]
[1724845911051,0.2435591,60155.0,60154.0,1.7782329]
[1724845911741,0.1606591,60155.0,60154.0,1.7642329]
[1724845911930,0.1606591,60155.0,60154.0,1.7782329]
[1724845912404,0.1606591,60155.0,60154.0,1.7542329]
[1724845912855,0.1606591,60155.0,60154.0,1.7822329]
[1724845913373,0.1606591,60155.0,60154.0,1.7682329]
[1724845913579,0.1606591,60155.0,60154.0,1.7822329]
[1724845914274,0.1606591,60155.0,60154.0,1.90562516]
[1724845914462,0.1606591,60155.0,60154.0,1.7822329]
[1724845915363,0.1606591,60155.0,60154.0,1.7682349]
[1724845915603,0.1606591,60155.0,60154.0,1.7822349]
[1724845916282,0.1606591,60155.0,60154.0,1.9056461]
[1724845916506,0.1606591,60155.0,60154.0,1.8916461]
[1724845916731,0.1606591,60155.0,60154.0,1.9056461]
[1724845917404,0.16004948,60155.0,60154.0,1.9056461]
[1724845918277,0.16004948,60155.0,60154.0,1.91800874]
[1724845919584,0.09824948,60155.0,60154.0,1.91800874]
[1724845920272,0.09824948,60155.0,60154.0,1.91807082]
[1724845921474,0.09824948,60155.0,60154.0,1.7805978]
[1724845921693,0.24294948,60155.0,60154.0,1.7435978]
[1724845921911,0.24294948,60155.0,60154.0,1.7575978]
[1724845922375,0.24294948,60155.0,60154.0,1.7435978]
[1724845922590,0.24294948,60155.0,60154.0,1.7575978]
[1724845922804,0.24294948,60155.0,60154.0,1.7805978]
[1724845923019,0.24294948,60155.0,60154.0,1.7945978]
[1724845923232,0.24294948,60155.0,60154.0,1.7805978]
[1724845923668,0.24294948,60155.0,60154.0,1.7715978]
[1724845924589,0.24294948,60155.0,60154.0,1.75923516]
[1724845924807,0.24294948,60155.0,60154.0,1.7716017]
[1724845926144,0.24294948,60155.0,60154.0,1.77160291]
[1724845928115,0.24294948,60155.0,60154.0,1.77160295]
[1724845928834,0.24294948,60155.0,60154.0,1.40275818]
[1724845929051,0.24294948,60155.0,60154.0,1.77160291]
[1724845929986,0.24294948,60155.0,60154.0,1.75760291]
[1724845930201,0.24294948,60155.0,60154.0,1.77160291]
[1724845930459,0.24294948,60155.0,60154.0,1.75760291]
[1724845931129,0.24294948,60155.0,60154.0,1.73178745]
[1724845931362,0.24294948,60155.0,60154.0,1.73341966]
[1724845931591,0.24294948,60155.0,60154.0,1.33984225]
[1724845931810,0.24294948,60155.0,60154.0,1.32584225]
[1724845932267,0.24294948,60155.0,60154.0,1.29039039]
[1724845932527,0.24294948,60155.0,60154.0,0.0269484]
[1724845932528,0.24794948,60155.0,60154.0,0.0269484]
[1724845932981,0.24794948,60155.0,60154.0,0.0288998]
[1724845932982,0.30611401,60155.0,60154.0,0.0288998]
[1724845933190,0.005,60147.0,60143.0,0.0009009]
[1724845933439,0.00415696,60146.0,60143.0,0.0009009]
[1724845933694,0.1447,60145.0,60144.0,0.01174181]
[1724845934352,0.1497,60145.0,60144.0,0.01174181]
[1724845934604,0.17576699,60145.0,60144.0,0.01174181]
[1724845934840,0.17076699,60145.0,60144.0,0.01174181]
[1724845935061,0.17076699,60145.0,60143.0,0.0009009]
[1724845935284,0.17076699,60145.0,60144.0,0.004]
[1724845936036,0.08786699,60145.0,60144.0,0.009]
[1724845936265,0.02606699,60145.0,60144.0,0.009]
[1724845936475,0.02606699,60145.0,60144.0,0.01574181]
[1724845936701,0.02606699,60145.0,60144.0,0.01674181]
[1724845936928,0.02606699,60145.0,60144.0,0.01174181]
[1724845937165,0.02606699,60145.0,60144.0,0.02874181]
[1724845937360,0.02706699,60145.0,60144.0,0.02874181]
[1724845937620,0.02606699,60145.0,60144.0,0.01174181]
[1724845938068,0.02706699,60145.0,60144.0,0.02374181]
[1724845938764,0.02706699,60145.0,60144.0,0.02464161]
[1724845938991,0.02706699,60145.0,60144.0,1.2750836]
[1724845939218,0.02806699,60145.0,60144.0,1.2750836]
[1724845939459,0.02706699,60145.0,60144.0,1.2740836]
[1724845939676,0.02806699,60145.0,60144.0,1.2750836]
[1724845939909,0.002,60145.0,60144.0,1.2750836]
[1724845941204,0.1432,60145.0,60144.0,1.2630836]
[1724845941418,0.1432,60145.0,60144.0,1.2640836]
[1724845941630,0.1442,60145.0,60144.0,1.2640836]
[1724845943126,0.1442,60145.0,60144.0,1.2630836]
[1724845943350,0.1432,60145.0,60144.0,1.2630836]
[1724845943605,0.002,60145.0,60144.0,1.2770836]
[1724845945833,0.0795,60145.0,60144.0,1.2770836]
[1724845946252,0.0795,60145.0,60144.0,1.27370492]
[1724845948155,0.0795,60145.0,60144.0,1.26534179]
[1724845950148,0.1442,60145.0,60144.0,1.26534179]
[1724845950799,0.1442,60145.0,60144.0,0.0158998]
[1724845952155,0.15335694,60145.0,60144.0,0.0158998]
[1724845952650,0.1492,60145.0,60144.0,0.0158998]
[1724845955715,0.17427025,60145.0,60144.0,0.0148998]
[1724845955929,0.17427025,60145.0,60144.0,0.0168998]
[1724845956143,0.17327025,60145.0,60144.0,0.0028998]
[1724845956372,0.17327025,60145.0,60144.0,0.0068998]
[1724845956592,0.17327025,60145.0,60144.0,0.0008998]
[1724845956807,0.17327025,60145.0,60144.0,0.0028998]
[1724845957023,0.17327025,60145.0,60144.0,0.0068998]
[1724845957231,0.17327025,60145.0,60144.0,0.0028998]
[1724845957659,0.17327025,60145.0,60144.0,0.0068998]
[1724845957870,0.17327025,60145.0,60144.0,0.0028998]
[1724845958323,0.17327025,60145.0,60144.0,0.0008998]
[1724845958529,0.17327025,60145.0,60144.0,0.0028998]
[1724845959255,0.17327025,60145.0,60144.0,0.0068998]
[1724845959470,0.17327025,60145.0,60144.0,0.0028998]
[1724845959895,0.1472,60145.0,60144.0,0.0068998]
[1724845964199,0.14715624,60145.0,60144.0,0.0068998]
[1724845964631,0.17322563,60145.0,60144.0,0.0068998]
[1724845966304,0.17326563,60145.0,60144.0,0.0068998]
[1724845967436,0.16826563,60145.0,60144.0,0.0068998]
[1724845967884,0.17242272,60145.0,60144.0,0.0068998]
[1724845968314,0.03026648,60145.0,60144.0,0.0068998]
[1724845968534,0.02610939,60145.0,60144.0,0.0068998]
[1724845969870,4e-05,60145.0,60144.0,0.0068998]
[1724845970927,4e-05,60145.0,60144.0,0.0856998]
[1724845971594,4e-05,60145.0,60144.0,0.0068998]
[1724845973111,0.00419685,60145.0,60144.0,0.0068998]
[1724845973340,4e-05,60145.0,60144.0,0.0068998]
[1724845973569,0.14444,60145.0,60144.0,0.0068998]
[1724845974520,0.17050852,60145.0,60144.0,0.0068998]
[1724845980066,0.14444,60145.0,60144.0,0.0068998]
[1724845983369,0.17050852,60145.0,60144.0,0.0068998]
[1724845987051,0.08830852,60145.0,60144.0,0.0068998]
[1724845987260,0.02610852,60145.0,60144.0,0.0068998]
[1724845987486,0.02692752,60145.0,60144.0,0.0068998]
[1724845987942,0.02692752,60145.0,60144.0,0.0856998]
[1724845993184,0.000859,60145.0,60144.0,0.0856998]
[1724845994291,0.000859,60145.0,60144.0,0.0068998]
[1724845995963,0.02692647,60145.0,60144.0,0.0068998]
[1724845999825,0.000859,60145.0,60144.0,0.0068998]
[1724846002096,0.000859,60145.0,60144.0,0.12175366]
[1724846002516,0.000859,60145.0,60144.0,0.19755366]
[1724846002931,0.02692597,60145.0,60144.0,0.19755366]
[1724846003371,0.02692597,60145.0,60144.0,0.26155366]
[1724846003798,0.000859,60145.0,60144.0,1.70577606]
[1724846004000,0.000859,60145.0,60144.0,1.81577606]
[1724846004130,0.000859,60145.0,60144.0,3.31577606]
[1724846004331,0.000859,60145.0,60144.0,3.31777606]
[1724846004536,0.000859,60145.0,60144.0,3.31577606]
[1724846004993,0.000859,60145.0,60144.0,1.6989222]
[1724846005194,0.000859,60145.0,60144.0,1.81145642]
[1724846005399,0.000859,60145.0,60144.0,1.79945642]
[1724846005627,0.000859,60145.0,60144.0,1.79645642]
[1724846005829,0.001859,60145.0,60144.0,1.82045642]
[1724846006007,0.002859,60145.0,60144.0,1.70960256]
[1724846006183,0.002859,60145.0,60144.0,1.71960256]
[1724846006393,0.002859,60145.0,60144.0,1.72160256]
[1724846006599,0.002859,60145.0,60144.0,1.70960256]
[1724846007871,0.002859,60145.0,60144.0,2.20197204]
[1724846008120,1e-08,60145.0,60144.0,1.87071127]
[1724846008331,1e-08,60145.0,60144.0,1.32774427]
[1724846008767,1e-08,60145.0,60144.0,1.27834179]
[1724846009587,1e-08,60145.0,60144.0,1.41814179]
[1724846011122,0.00081901,60145.0,60144.0,1.41814179]
[1724846011975,0.00081901,60145.0,60144.0,1.35414179]
[1724846012173,0.00081901,60145.0,60144.0,1.27834179]
[1724846014275,0.0268854,60145.0,60144.0,1.27834179]
[1724846019868,0.00081901,60145.0,60144.0,1.27834179]
[1724846023062,0.02688559,60145.0,60144.0,1.27834179]
[1724846023975,0.02688559,60145.0,60144.0,0.0288998]
[1724846023976,0.08868559,60145.0,60144.0,0.0288998]
[1724846024187,0.16638559,60145.0,60144.0,0.0288998]
[1724846024883,0.16638559,60145.0,60144.0,0.0148998]
[1724846025346,0.16738559,60145.0,60144.0,0.0288998]
[1724846025760,0.16738559,60145.0,60144.0,0.0148998]
[1724846025761,0.16638559,60145.0,60144.0,0.0148998]
[1724846025973,0.16638558,60145.0,60144.0,0.0008998]
[1724846026183,0.16738558,60145.0,60144.0,0.0148998]
[1724846026637,0.16738558,60145.0,60144.0,0.0008998]
[1724846026854,0.16838558,60145.0,60144.0,0.0148998]
[1724846027069,0.16938558,60145.0,60144.0,0.0288998]
[1724846027283,0.16738558,60145.0,60144.0,0.0148998]
[1724846027511,0.16838558,60145.0,60144.0,0.0288998]
[1724846027779,0.02788558,60145.0,60144.0,0.0148998]
[1724846027995,0.02888558,60145.0,60144.0,0.0288998]
[1724846028206,0.02888558,60145.0,60144.0,0.07835742]
[1724846029125,0.002819,60145.0,60144.0,0.07835742]
[1724846030045,0.002819,60145.0,60144.0,0.0288998]
[1724846030921,0.002819,60145.0,60144.0,0.1085998]
[1724846031132,0.002819,60145.0,60144.0,0.1686998]
[1724846031358,0.002819,60145.0,60144.0,1.97852104]
[1724846031585,0.002819,60145.0,60144.0,2.07852104]
[1724846035926,0.002819,60145.0,60144.0,2.08052104]
[1724846036145,0.002819,60145.0,60144.0,2.08048889]
[1724846036817,1e-08,60145.0,60144.0,2.10547085]
[1724846038126,1e-08,60145.0,60144.0,2.11547085]
[1724846038346,1e-08,60145.0,60144.0,2.26397497]
[1724846039679,1e-08,60145.0,60144.0,2.26397436]
[1724846040786,1e-08,60145.0,60144.0,2.26383834]
[1724846042400,1e-08,60145.0,60144.0,2.1154488]
[1724846043886,1e-08,60145.0,60144.0,2.0533488]
[1724846045075,1e-08,60145.0,60144.0,2.1134488]
[1724846045282,1e-08,60145.0,60144.0,2.08846748]
[1724846045512,1e-08,60145.0,60144.0,2.1134488]
[1724846045746,1e-08,60145.0,60144.0,2.1154488]
[1724846045979,1e-08,60145.0,60144.0,2.26383834]
[1724846047910,0.00081901,60145.0,60144.0,2.26383834]
[1724846048163,0.00081901,60145.0,60144.0,2.1154488]
[1724846048399,0.02606376,60151.0,60150.0,0.002]
[1724846048623,0.02606376,60151.0,60150.0,0.65792914]
[1724846048827,0.02606376,60151.0,60150.0,2.00737113]
[1724846049047,0.02606376,60151.0,60150.0,2.09047113]
[1724846049742,0.02606376,60151.0,60150.0,2.09847113]
[1724846049743,0.02706376,60151.0,60150.0,2.09847113]
[1724846049957,0.02706376,60151.0,60150.0,2.38161054]
[1724846049958,0.001,60151.0,60150.0,2.38161054]
[1724846050169,0.000818,60154.0,60153.0,0.01]
[1724846050383,0.000818,60154.0,60153.0,0.54166492]
[1724846050612,0.000818,60154.0,60153.0,0.64362198]
[1724846051782,0.09820948,60155.0,60154.0,0.012]
[1724846052011,0.09820948,60155.0,60154.0,0.79584606]
[1724846052492,0.09820948,60155.0,60154.0,0.93564606]
[1724846053223,0.09820948,60155.0,60154.0,0.94964606]
[1724846053470,0.09820948,60155.0,60154.0,0.82608275]
[1724846054173,0.09820948,60155.0,60154.0,0.82607267]
[1724846054395,0.09820948,60155.0,60154.0,0.84007267]
[1724846054617,0.02606066,60162.0,60158.0,0.43886422]
[1724846054870,0.081,60173.0,60158.0,1.13250689]
[1724846055129,0.02605914,60171.0,60158.0,1.1481184]
[1724846055356,0.02605914,60171.0,60158.0,2.6481184]
[1724846055811,0.02605914,60171.0,60158.0,2.6621184]
[1724846056171,0.02605914,60171.0,60158.0,2.68194083]
[1724846056271,0.02605914,60171.0,60158.0,2.66794083]
[1724846056494,0.02605914,60171.0,60158.0,2.68194083]
[1724846056777,0.02605914,60171.0,60158.0,3.94605393]
[1724846057243,0.02605914,60171.0,60158.0,3.96005393]
[1724846057464,0.02605914,60171.0,60158.0,3.94605393]
[1724846057928,0.02605914,60171.0,60158.0,3.96005393]
[1724846058388,0.02605914,60171.0,60158.0,3.95996299]
[1724846058802,0.02605914,60171.0,60158.0,3.59124203]
[1724846059061,0.02605914,60171.0,60158.0,3.95996341]
[1724846059932,0.0612,60174.0,60158.0,3.95996341]
[1724846060360,0.00819,60177.0,60158.0,3.95996341]
[1724846060787,0.00819,60177.0,60165.0,0.18517]
[1724846060996,0.00819,60177.0,60165.0,1.15134331]
[1724846061264,0.00819,60177.0,60165.0,1.2942812]
[1724846061475,0.00819,60177.0,60165.0,2.79422115]
[1724846061910,0.00819,60177.0,60175.0,0.002]
[1724846062126,0.00819,60177.0,60176.0,1.71788163]
[1724846062357,0.00819,60177.0,60176.0,2.41575904]
[1724846062633,0.01274392,60199.0,60176.0,2.41575904]
[1724846062634,0.0612,60194.0,60185.0,0.0752]
[1724846062860,0.00859,60199.0,60185.0,0.0752]
[1724846062861,0.0612,60198.0,60188.0,0.28706422]
[1724846063092,0.0612,60198.0,60189.0,0.29146077]
[1724846063299,0.0260477,60197.0,60189.0,1.79146077]
[1724846063729,0.0818,60195.0,60189.0,0.29146077]
[1724846064409,0.0818,60195.0,60189.0,0.30546077]
[1724846064634,0.0818,60195.0,60189.0,0.29146077]
[1724846065070,0.0818,60195.0,60189.0,0.30546077]
[1724846065291,0.0818,60195.0,60189.0,0.31946077]
[1724846065715,0.0260477,60197.0,60189.0,0.151]
[1724846065716,0.0818,60193.0,60189.0,0.151]
[1724846065926,0.06535326,60192.0,60189.0,0.014]
[1724846066140,0.143,60191.0,60189.0,0.028]
[1724846066605,0.01603535,60196.0,60189.0,0.028]
[1724846066606,0.0612,60194.0,60189.0,0.028]
[1724846066812,0.0612,60191.0,60189.0,0.014]
[1724846066995,0.0818,60190.0,60189.0,0.014]
[1724846067237,0.143,60190.0,60189.0,0.014]
[1724846067682,0.0612,60190.0,60189.0,0.014]
[1724846067915,0.08724848,60190.0,60189.0,0.014]
[1724846068125,0.08724848,60190.0,60189.0,0.028]
[1724846068336,0.16904848,60190.0,60187.0,1.24904199]
[1724846068546,0.16904848,60190.0,60189.0,0.014]
[1724846068749,0.16904848,60190.0,60189.0,0.028]
[1724846069196,0.16904848,60190.0,60189.0,0.014]
[1724846070048,0.143,60190.0,60189.0,0.014]
[1724846071630,0.143,60190.0,60189.0,0.028]
[1724846072269,0.147154,60190.0,60189.0,0.028]
[1724846072470,0.152154,60190.0,60189.0,0.028]
[1724846073312,0.148,60190.0,60189.0,0.028]
[1724846073516,0.148,60190.0,60189.0,0.014]
[1724846073721,0.143,60189.0,60179.0,0.01472055]
[1724846073932,0.0818,60186.0,60179.0,0.01472055]
[1724846074163,0.06535441,60185.0,60175.0,0.1]
[1724846074365,0.0818,60184.0,60175.0,0.1]
[1724846074577,0.00415443,60183.0,60175.0,0.1]
[1724846075210,0.00415443,60183.0,60179.0,0.014]
[1724846075457,0.00415443,60183.0,60175.0,0.1]
[1724846075659,0.00415443,60183.0,60175.0,0.114]
[1724846075834,0.00415443,60183.0,60175.0,0.12841195]
[1724846076856,0.143,60181.0,60175.0,0.14241195]
[1724846077063,0.08595443,60180.0,60175.0,1.37745394]
[1724846077277,0.0818,60180.0,60175.0,1.37745394]
[1724846077477,0.0818,60180.0,60179.0,0.014]
[1724846077888,0.02605113,60179.0,60175.0,1.37745394]
[1724846078100,1e-08,60179.0,60175.0,1.36345394]
[1724846078505,0.0818,60180.0,60175.0,1.36345394]
[1724846078715,0.0818,60180.0,60175.0,1.37745394]
[1724846079117,0.0818,60180.0,60175.0,1.39145394]
[1724846080026,0.0818,60180.0,60175.0,1.37745394]
[1724846080231,0.0818,60180.0,60175.0,1.39145394]
[1724846080886,0.0818,60180.0,60175.0,1.37745394]
[1724846081094,0.0818,60180.0,60175.0,1.39145394]
[1724846081530,0.0818,60180.0,60176.0,1.24904199]
[1724846081801,0.00415442,60179.0,60177.0,0.1]
[1724846084150,0.00415442,60179.0,60177.0,0.114]
[1724846084558,0.00415442,60179.0,60177.0,0.128]
[1724846086979,0.00415442,60179.0,60177.0,0.1149009]
[1724846087199,0.00415442,60179.0,60177.0,0.0289009]
[1724846087401,0.00415442,60179.0,60177.0,0.0149009]
[1724846087752,0.00415442,60179.0,60177.0,0.0289009]
[1724846088373,0.1397,60178.0,60177.0,0.0289009]
[1724846088827,0.1447,60178.0,60177.0,0.0289009]
[1724846089350,0.17075228,60178.0,60177.0,0.0289009]
[1724846089867,0.17075228,60178.0,60177.0,0.0149009]
[1724846090074,0.17075228,60178.0,60177.0,0.0289009]
[1724846090274,0.17075228,60178.0,60177.0,0.0149009]
[1724846090480,0.17075228,60178.0,60177.0,0.0289009]
[1724846090695,0.17075228,60178.0,60177.0,0.0149009]
[1724846090898,0.17075228,60178.0,60177.0,0.0119009]
[1724846091305,0.17075228,60178.0,60177.0,0.0249009]
[1724846091519,0.1447,60178.0,60177.0,0.0249009]
[1724846092416,0.1397,60178.0,60177.0,0.0249009]
[1724846092653,0.0618,60178.0,60177.0,0.0139009]
[1724846093069,0.0618,60178.0,60177.0,0.0249009]
[1724846093487,0.1397,60185.0,60177.0,0.0759009]
[1724846093692,0.00415444,60184.0,60177.0,0.0759009]
[1724846093891,0.00415444,60184.0,60177.0,0.1029009]
[1724846094097,0.00415444,60184.0,60177.0,0.0149009]
[1724846094307,0.00415444,60184.0,60177.0,0.0009009]
[1724846094564,0.00415444,60184.0,60177.0,0.0249009]
[1724846094765,0.00415444,60184.0,60177.0,0.0109009]
[1724846094972,0.02605178,60183.0,60177.0,0.0109009]
[1724846095174,0.00415445,60182.0,60177.0,0.0109009]
[1724846095606,0.00415445,60182.0,60177.0,0.0239009]
[1724846095805,0.00415445,60182.0,60177.0,0.0139009]
[1724846096177,0.00415445,60182.0,60177.0,0.0249009]
[1724846096587,0.02605178,60183.0,60177.0,0.0139009]
[1724846096764,0.02605178,60183.0,60177.0,0.06309838]
[1724846097191,0.02605178,60183.0,60178.0,0.04919748]
[1724846097737,0.02605178,60183.0,60178.0,0.04936898]
[1724846098146,0.02605178,60183.0,60179.0,0.04936898]
[1724846099128,0.02687078,60183.0,60179.0,0.04936898]
[1724846099341,0.02687078,60183.0,60180.0,0.04936898]
[1724846099507,0.000819,60183.0,60180.0,0.04936898]
[1724846100454,0.1447,60180.0,60179.0,0.04936898]
[1724846100708,0.1447,60180.0,60178.0,1.26304199]
[1724846100709,0.1447,60180.0,60178.0,1.24904199]